bitfinex-derivatives/quotes_BNBF0:USTF0_20241230
["timestamp","ask_amount","ask_price","bid_price","bid_amount"]
[1735570062252,0.2655951,694.17,692.16,1.0549336]
[1735570062453,0.2655951,694.16,692.16,1.0549336]
[1735570062651,0.2655951,694.15,692.13,1.0549336]
[1735570062854,0.2655951,694.14,692.13,1.0549336]
[1735570063147,0.26561289,694.13,692.13,1.0549336]
[1735570063355,0.26561289,694.12,692.13,1.0549336]
[1735570063553,0.26561289,694.11,692.13,1.0549336]
[1735570063752,0.26562724,694.11,692.13,1.0549336]
[1735570063948,0.26562724,694.1,692.07,1.0549336]
[1735570064147,0.26562724,694.09,692.07,1.0549336]
[1735570064453,0.26562724,694.08,692.07,1.0549336]
[1735570064648,0.26562724,694.07,692.07,1.0549336]
[1735570064849,0.26562724,694.06,692.07,1.0549336]
[1735570065052,0.26562724,694.05,691.97,1.0549336]
[1735570065253,0.26562724,694.04,691.97,1.0549336]
[1735570065551,1.06545962,694.53,691.97,1.0549336]
[1735570065752,0.26562693,694.52,691.97,1.0549336]
[1735570065949,0.26562693,694.51,691.97,1.0549336]
[1735570066255,0.26562693,694.5,691.97,1.0549336]
[1735570066461,0.26562693,694.49,691.95,1.0549336]
[1735570066657,0.26562693,694.48,691.95,1.0549336]
[1735570066856,0.26562693,694.47,691.95,1.0549336]
[1735570067152,0.26562693,694.46,691.95,1.0549336]
[1735570067357,0.26562693,694.45,691.95,1.0549336]
[1735570067557,1.06545962,694.52,691.95,1.0549336]
[1735570067558,0.26562693,694.44,691.95,1.0549336]
[1735570067750,1.06545962,694.52,691.95,1.0549336]
[1735570068458,1.06545962,694.58,692.17,1.0549336]
[1735570068852,0.26556089,694.51,692.17,1.0549336]
[1735570069259,0.2655583,694.57,692.1,1.0549336]
[1735570069460,0.2655583,694.5,692.1,1.0549336]
[1735570069760,0.2655583,694.49,692.1,1.0549336]
[1735570069962,0.2655583,694.48,692.1,1.0549336]
[1735570070157,0.2655583,694.47,692.1,1.0549336]
[1735570070361,0.90314866,694.46,692.09,1.0549336]
[1735570070560,0.90314866,694.45,692.09,1.0549336]
[1735570070859,0.2655583,694.44,692.09,1.0549336]
[1735570071055,0.9033938,694.43,692.09,1.0549336]
[1735570071261,1.06545962,694.34,692.0,1.0549336]
[1735570071462,0.26563847,694.33,692.0,1.0549336]
[1735570071661,0.26563847,694.32,692.0,1.0549336]
[1735570071864,0.26563847,694.31,692.0,1.0549336]
[1735570072059,0.26563847,694.3,691.96,1.0549336]
[1735570072274,0.26563847,694.29,691.96,1.0549336]
[1735570072462,0.26563847,694.28,691.96,1.0549336]
[1735570072662,0.26563847,694.27,691.96,1.0549336]
[1735570072862,0.26563847,694.26,691.96,1.0549336]
[1735570073060,0.26563847,694.25,691.96,1.0549336]
[1735570073367,0.26563847,694.24,691.86,1.0549336]
[1735570073568,0.26565536,694.23,691.86,1.0549336]
[1735570073767,0.26565536,694.22,691.86,1.0549336]
[1735570074064,0.26565536,694.21,691.86,1.0549336]
[1735570074260,0.26565536,694.2,691.86,1.0549336]
[1735570074462,0.26565536,694.19,691.85,0.28908]
[1735570074666,0.26565536,694.18,691.85,0.28908]
[1735570074867,0.26565536,694.17,691.85,0.28908]
[1735570075066,0.26565536,694.16,691.85,0.28908]
[1735570075265,0.26565536,694.15,691.85,0.28908]
[1735570075466,0.26565536,694.14,691.85,0.28908]
[1735570075668,0.26565536,694.13,691.85,0.28908]
[1735570075866,0.26565536,694.12,691.85,0.28908]
[1735570076062,1.06545962,694.69,691.85,0.28908]
[1735570076262,0.2656706,694.68,691.85,0.28908]
[1735570076461,0.2656706,694.67,691.85,0.28908]
[1735570076667,1.06545962,694.69,691.85,0.28908]
[1735570076866,1.06545962,694.61,691.85,0.28908]
[1735570077070,0.26566359,694.6,691.85,0.28908]
[1735570077273,0.26566359,694.59,691.85,0.28908]
[1735570077472,0.90347012,694.58,691.85,0.28908]
[1735570077672,0.90347012,694.57,691.85,0.28908]
[1735570077874,0.26566359,694.56,691.85,0.28908]
[1735570078067,0.26566359,694.55,691.85,0.28908]
[1735570078269,0.26566359,694.54,691.85,0.28908]
[1735570078470,0.28801428,694.41,691.85,0.28908]
[1735570078666,0.26566166,694.4,691.85,0.28908]
[1735570078867,0.26566166,694.39,691.85,0.28908]
[1735570079069,0.28806821,694.28,691.85,0.28908]
[1735570079273,0.26566166,694.27,691.85,0.28908]
[1735570080767,0.26566166,694.26,691.85,0.28908]
[1735570080973,0.2656149,694.25,691.85,0.28908]
[1735570081275,0.2656149,694.24,691.85,0.28908]
[1735570081473,0.28813046,694.13,691.85,0.28908]
[1735570081675,0.2656149,694.12,691.98,1.0549336]
[1735570081875,0.28817613,694.02,691.98,1.0549336]
[1735570082066,0.2656149,694.01,691.98,1.0549336]
[1735570082268,0.2656149,694.0,691.98,1.0549336]
[1735570082471,0.2656149,693.99,691.98,1.0549336]
[1735570082670,0.2656149,693.98,691.98,1.0549336]
[1735570082876,0.2656149,693.97,692.08,1.0549336]
[1735570083170,0.5538387,693.96,692.08,1.0549336]
[1735570083376,0.26563766,693.95,692.08,1.0549336]
[1735570083576,0.28820104,693.96,692.08,1.0549336]
[1735570083871,0.26564398,693.95,691.85,0.28908]
[1735570084576,0.26564398,693.94,691.85,0.28908]
[1735570084775,0.26564398,693.93,691.85,0.28908]
[1735570084976,0.26564398,693.92,691.85,0.28908]
[1735570085177,0.26564398,693.91,691.85,0.28908]
[1735570085478,0.26564398,693.9,691.85,0.28908]
[1735570085678,0.26565479,693.89,691.85,0.28908]
[1735570085979,0.28826751,693.8,691.85,0.28908]
[1735570086173,0.26565479,693.79,691.85,0.28908]
[1735570086372,0.26565479,693.78,691.86,1.0549336]
[1735570086579,0.26565479,693.77,691.86,1.0549336]
[1735570086781,0.26565479,693.76,691.86,1.0549336]
[1735570087079,0.26565479,693.75,691.86,1.0549336]
[1735570087281,0.26565479,693.74,691.87,0.28907164]
[1735570087576,0.26565479,693.73,692.19,1.0549336]
[1735570087879,0.26565479,693.72,692.19,1.0549336]
[1735570088075,0.26558426,693.71,692.19,1.0549336]
[1735570088379,0.26558426,693.7,692.19,1.0549336]
[1735570088574,0.26558426,693.69,692.19,1.0549336]
[1735570088778,0.28826751,693.8,691.87,0.28907164]
[1735570088779,0.26558426,693.68,692.24,1.0549336]
[1735570088979,0.26558426,693.67,692.24,1.0549336]
[1735570089273,0.26558426,693.66,692.24,1.0549336]
[1735570089479,0.26558426,693.65,692.24,1.0549336]
[1735570089679,0.26558426,693.64,692.32,1.0549336]
[1735570089978,0.26558426,693.63,692.32,1.0549336]
[1735570090179,0.26558426,693.62,692.32,1.0549336]
[1735570090479,0.26558426,693.61,692.32,1.0549336]
[1735570090678,0.26558426,693.6,692.32,1.0549336]
[1735570090877,0.26558426,693.59,692.38,1.0549336]
[1735570091076,0.28826751,693.8,692.38,1.0549336]
[1735570091279,0.26565762,693.79,692.38,1.0549336]
[1735570091679,0.28826751,693.8,692.38,1.0549336]
[1735570091889,0.26571387,693.79,692.14,1.0549336]
[1735570092079,0.26571387,693.78,692.14,1.0549336]
[1735570092281,0.26571387,693.77,692.14,1.0549336]
[1735570092582,0.26571387,693.76,692.14,1.0549336]
[1735570092882,0.28829244,693.74,692.14,1.0549336]
[1735570093082,0.26571387,693.73,692.14,1.0549336]
[1735570093382,0.2657062,693.73,692.0,1.0549336]
[1735570094182,0.2657062,693.73,692.07,1.0549336]
[1735570095083,0.2657062,693.73,692.23,1.0549336]
[1735570095776,0.26565428,693.72,692.23,1.0549336]
[1735570095983,0.26565428,693.71,692.21,1.0549336]
[1735570096185,0.26565428,693.73,692.21,1.0549336]
[1735570096482,0.26565428,693.72,692.21,1.0549336]
[1735570096676,0.26565428,693.71,692.21,1.0549336]
[1735570096877,0.26565428,693.73,692.21,1.0549336]
[1735570097077,0.26565428,693.72,692.18,1.0549336]
[1735570097277,0.28830906,693.7,692.18,1.0549336]
[1735570097481,0.26565428,693.69,692.18,1.0549336]
[1735570097681,0.28832153,693.67,692.18,1.0549336]
[1735570097983,0.26565428,693.66,692.19,1.0549336]
[1735570098182,0.28832153,693.67,692.19,1.0549336]
[1735570098485,0.26568318,693.66,692.19,1.0549336]
[1735570098885,0.28832153,693.67,692.02,1.0549336]
[1735570099085,0.26574979,693.66,692.02,1.0549336]
[1735570099385,0.26574979,693.65,692.02,1.0549336]
[1735570099585,0.26574979,693.64,692.02,1.0549336]
[1735570099888,0.26574979,693.64,691.88,0.79700058]
[1735570099889,0.26574979,693.63,692.05,1.0549336]
[1735570100186,0.26574979,693.62,692.05,1.0549336]
[1735570100384,0.26574979,693.61,692.05,1.0549336]
[1735570100698,0.26574979,693.6,692.05,1.0549336]
[1735570100981,0.28832153,693.67,691.88,0.79700058]
[1735570100982,0.26571116,693.59,692.13,1.0549336]
[1735570101181,0.26571116,693.58,692.13,1.0549336]
[1735570101382,0.26571116,693.57,692.13,1.0549336]
[1735570101585,0.26571116,693.56,692.13,1.0549336]
[1735570101883,0.26571116,693.55,692.13,1.0549336]
[1735570102082,0.26571116,693.54,692.19,1.0549336]
[1735570102290,0.26571116,693.53,692.19,1.0549336]
[1735570102487,0.26571116,693.52,692.19,1.0549336]
[1735570102688,0.26571116,693.51,692.19,1.0549336]
[1735570102885,0.26571116,693.5,692.19,1.0549336]
[1735570103085,0.26571116,693.49,692.19,1.0549336]
[1735570103287,0.28832153,693.67,692.19,1.0549336]
[1735570103588,0.26568323,693.66,692.3,1.0549336]
[1735570103788,0.26568323,693.65,692.3,1.0549336]
[1735570103984,0.26568323,693.64,692.3,1.0549336]
[1735570104287,0.26568323,693.63,692.3,1.0549336]
[1735570104490,0.26568323,693.62,692.3,1.0549336]
[1735570104785,0.28835063,693.6,692.3,1.0549336]
[1735570104989,0.26568323,693.59,692.12,1.0549336]
[1735570105189,0.26568323,693.58,692.12,1.0549336]
[1735570105389,0.26568323,693.57,692.12,1.0549336]
[1735570105688,0.26568323,693.56,692.12,1.0549336]
[1735570105884,0.26573779,693.55,691.97,1.0549336]
[1735570106088,0.26573779,693.54,691.97,1.0549336]
[1735570106287,0.26573779,693.53,691.97,1.0549336]
[1735570106486,0.26573779,693.52,691.97,1.0549336]
[1735570106687,0.26573779,693.51,691.97,1.0549336]
[1735570106883,0.26573779,693.5,692.08,1.0549336]
[1735570107087,0.26573779,693.49,692.08,1.0549336]
[1735570107290,0.26573779,693.48,692.08,1.0549336]
[1735570107587,0.26573779,693.47,692.08,1.0549336]
[1735570107890,0.28835063,693.6,692.08,1.0549336]
[1735570107891,0.288413,693.45,692.08,1.0549336]
[1735570108091,0.26573779,693.44,692.03,1.0549336]
[1735570108485,0.26571793,693.43,691.88,0.79700058]
[1735570108685,0.26571793,693.44,691.88,0.79700058]
[1735570108888,0.26571793,693.42,691.88,0.79700058]
[1735570109189,0.26571793,693.41,691.88,0.79700058]
[1735570109388,0.26571793,693.44,691.88,0.79700058]
[1735570109584,0.288413,693.45,691.88,0.79700058]
[1735570109585,0.26571793,693.43,692.13,1.07821166]
[1735570109789,0.26571793,693.42,692.13,1.07821166]
[1735570109989,0.26571793,693.41,692.13,1.07821166]
[1735570110289,0.26571793,693.4,692.13,1.07821166]
[1735570110591,0.288413,693.45,692.12,1.07821166]
[1735570110592,0.26571793,693.39,692.12,1.07821166]
[1735570110784,0.26571793,693.38,692.12,1.07821166]
[1735570110987,0.26569845,693.37,692.12,1.07821166]
[1735570111187,0.26569845,693.36,692.12,1.07821166]
[1735570111391,0.26569845,693.35,692.12,1.07821166]
[1735570111590,0.26569845,693.34,692.12,1.07821166]
[1735570111791,0.26568987,693.33,692.12,1.07821166]
[1735570111990,0.26568987,693.32,692.12,1.07821166]
[1735570112186,0.55416111,693.31,692.12,1.07821166]
[1735570112391,0.26568987,693.3,692.12,1.07821166]
[1735570113496,0.28847124,693.31,692.09,1.07821166]
[1735570113693,0.26571773,693.3,692.09,1.07821166]
[1735570113995,0.28848372,693.28,692.09,1.07821166]
[1735570114188,0.26571905,693.27,692.09,1.07821166]
[1735570114493,0.26571905,693.27,691.88,0.79700058]
[1735570114494,0.28849205,693.26,692.07,1.07821166]
[1735570114693,0.26571905,693.25,692.07,1.07821166]
[1735570114894,0.28850037,693.24,692.07,1.07821166]
[1735570115193,0.26571905,693.23,692.07,1.07821166]
[1735570115393,0.26571905,693.23,692.15,1.07821166]
[1735570115692,0.28850869,693.22,692.15,1.07821166]
[1735570115895,0.26571905,693.21,692.15,1.07821166]
[1735570116292,0.26569026,693.2,692.15,1.07821166]
[1735570116594,0.26569026,693.19,692.15,1.07821166]
[1735570116889,0.28852534,693.18,692.14,1.07821166]
[1735570117695,0.28852534,693.18,692.35,1.07868699]
[1735570118899,0.28852534,693.18,692.26,1.07868699]
[1735570120395,0.28852534,693.18,692.22,1.07868699]
[1735570121304,0.28852534,693.18,692.2,1.07868699]
[1735570121996,0.28852534,693.18,692.28,1.07868699]
[1735570122197,1.07937838,694.64,692.28,1.07868699]
[1735570122396,0.28796452,694.53,692.28,1.07868699]
[1735570122597,0.26556795,694.52,692.28,1.07868699]
[1735570122797,0.28801428,694.41,692.28,1.07868699]
[1735570122998,0.26556795,694.4,692.34,1.07868699]
[1735570123898,0.26556795,694.39,692.34,1.07868699]
[1735570124098,0.28806406,694.29,692.34,1.07868699]
[1735570124299,0.26556795,694.28,692.59,1.07868699]
[1735570124495,0.26556795,694.27,692.59,1.07868699]
[1735570124697,0.26556795,694.26,692.59,1.07868699]
[1735570124895,0.26556795,694.25,692.59,1.07868699]
[1735570125094,0.26556795,694.24,692.59,1.07868699]
[1735570125401,0.26556795,694.23,692.68,1.07868699]
[1735570125700,0.28809726,694.21,692.68,1.07868699]
[1735570125899,0.26556795,694.2,692.68,1.07868699]
[1735570126101,0.28810971,694.18,692.68,1.07868699]
[1735570126300,0.26556795,694.17,692.68,1.07868699]
[1735570126502,0.26556795,694.17,692.63,1.07868699]
[1735570126702,0.26547898,694.16,692.63,1.07868699]
[1735570126903,0.26547898,694.15,692.63,1.07868699]
[1735570127201,0.26547898,694.14,692.54,1.07868699]
[1735570127398,0.28810971,694.18,692.54,1.07868699]
[1735570127399,0.26547898,694.13,692.54,1.07868699]
[1735570127603,0.26547898,694.12,692.54,1.07868699]
[1735570127801,0.28810971,694.18,692.54,1.07868699]
[1735570127802,0.26547898,694.11,692.54,1.07868699]
[1735570128002,0.26547898,694.1,692.54,1.07868699]
[1735570128202,0.26547898,694.09,692.58,1.07868699]
[1735570128396,0.26547898,694.08,692.58,1.07868699]
[1735570128601,0.26547898,694.07,692.58,1.07868699]
[1735570128806,0.26547898,694.06,692.58,1.07868699]
[1735570129004,0.55364265,694.05,692.58,1.07868699]
[1735570129206,0.26547898,694.04,692.53,1.07868699]
[1735570129900,0.26550501,694.03,692.53,1.07868699]
[1735570130105,0.28818028,694.01,692.53,1.07868699]
[1735570130303,0.26551831,694.0,692.53,1.07868699]
[1735570130608,0.26551831,694.0,692.42,1.07868699]
[1735570131108,0.26551831,693.99,692.42,1.07868699]
[1735570131309,0.26551831,693.98,692.42,1.07868699]
[1735570131607,0.26551831,693.97,692.34,1.07868699]
[1735570131808,0.26551831,694.0,692.34,1.07868699]
[1735570132108,0.26551831,693.99,692.34,1.07868699]
[1735570132304,0.26551831,693.98,692.34,1.07868699]
[1735570132509,0.28820104,693.96,692.34,1.07868699]
[1735570132707,0.26551831,693.95,692.23,1.07868699]
[1735570133705,0.26551831,693.95,692.15,1.07868699]
[1735570134106,0.2882135,693.93,692.15,1.07868699]
[1735570134403,0.26558692,693.92,692.15,1.07868699]
[1735570134603,0.26558692,693.92,692.17,1.07868699]
[1735570134810,0.28822596,693.9,692.17,1.07868699]
[1735570135008,0.26558692,693.89,692.17,1.07868699]
[1735570136409,0.28823843,693.87,692.17,1.07868699]
[1735570136604,0.26558692,693.86,692.17,1.07868699]
[1735570136810,0.28825089,693.84,692.17,1.07868699]
[1735570137012,0.26558692,693.83,692.17,1.07868699]
[1735570137411,0.26558692,693.83,692.15,1.07868699]
[1735570137808,0.28826335,693.81,692.15,1.07868699]
[1735570138006,0.26558692,693.8,692.15,1.07868699]
[1735570138312,0.28827582,693.78,692.19,1.07868699]
[1735570138611,0.26558692,693.77,692.19,1.07868699]
[1735570138812,0.28828828,693.75,692.19,1.07868699]
[1735570139006,0.26558692,693.74,692.19,1.07868699]
[1735570139205,0.28830075,693.72,692.19,1.07868699]
[1735570139408,0.26558692,693.71,692.16,1.07868699]
[1735570139712,0.26559458,693.7,692.16,1.07868699]
[1735570139913,0.26559458,693.69,692.16,1.07868699]
[1735570140112,0.26559458,693.68,692.16,1.07868699]
[1735570140311,0.26559458,693.67,692.16,1.07868699]
[1735570140512,0.26559458,693.66,692.22,1.07868699]
[1735570140708,0.26559458,693.65,692.22,1.07868699]
[1735570140911,0.26559458,693.64,692.22,1.07868699]
[1735570141213,0.26559458,693.63,692.22,1.07868699]
[1735570141414,0.26560408,693.62,692.21,1.07868699]
[1735570141714,0.28830075,693.72,692.21,1.07868699]
[1735570141715,0.26560408,693.61,692.21,1.07868699]
[1735570141912,0.26560408,693.6,692.21,1.07868699]
[1735570142214,0.55395887,693.59,692.3,1.07868699]
[1735570142512,0.26560408,693.58,692.3,1.07868699]
[1735570143312,0.26560408,693.58,692.31,1.07868699]
[1735570143907,0.26561173,693.57,692.34,1.07868699]
[1735570144214,0.26561173,693.56,692.34,1.07868699]
[1735570144409,0.26561173,693.55,692.34,1.07868699]
[1735570144615,0.26561173,693.58,692.34,1.07868699]
[1735570144809,0.26561173,693.57,692.34,1.07868699]
[1735570145012,0.26561173,693.56,692.34,1.07868699]
[1735570145215,0.26561173,693.55,692.34,1.07868699]
[1735570145514,0.26561173,693.54,692.25,1.07868699]
[1735570145815,0.28838389,693.52,692.25,1.07868699]
[1735570146018,0.26561173,693.51,692.25,1.07868699]
[1735570146211,0.26561173,693.51,692.24,1.07868699]
[1735570146410,0.26559655,693.5,692.24,1.07868699]
[1735570146613,0.26559655,693.49,692.24,1.07868699]
[1735570146811,0.28838389,693.52,692.24,1.07868699]
[1735570147011,0.28838389,693.52,692.37,1.07868699]
[1735570148117,0.28838389,693.52,692.43,1.07868699]
[1735570148717,0.26558806,693.51,692.43,1.07868699]
[1735570148916,0.26558806,693.51,692.35,1.07868699]
[1735570149716,0.26558806,693.51,692.44,1.07868699]
[1735570150215,0.28839221,693.5,692.44,1.07868699]
[1735570150412,0.26558806,693.49,692.44,1.07868699]
[1735570150616,0.28840053,693.48,692.49,1.07868699]
[1735570150811,0.26558806,693.47,692.49,1.07868699]
[1735570151211,0.28840884,693.46,692.49,1.07868699]
[1735570151817,0.28840884,693.46,692.48,1.07868699]
[1735570152818,0.28840884,693.46,692.2,1.07868699]
[1735570153415,0.26565518,693.45,692.2,1.07868699]
[1735570153817,0.26565518,693.45,691.87,1.3672833]
[1735570153818,0.26565518,693.45,692.12,1.07868699]
[1735570154137,0.26570284,693.44,692.12,1.07868699]
[1735570154317,0.26570284,693.43,692.12,1.07868699]
[1735570154516,0.26570284,693.42,692.12,1.07868699]
[1735570154716,0.26570284,693.41,692.12,1.07868699]
[1735570154916,0.26570284,693.4,692.12,1.07868699]
[1735570155112,0.26570284,693.39,692.12,1.07868699]
[1735570155314,0.26570284,693.38,692.12,1.07868699]
[1735570155511,0.26570284,693.37,692.12,1.07868699]
[1735570155712,0.28840884,693.46,692.12,1.07868699]
[1735570155912,0.26566759,693.45,692.08,1.07868699]
[1735570156512,0.28842132,693.43,692.08,1.07868699]
[1735570156717,0.26566759,693.42,692.08,1.07868699]
[1735570157119,0.26566759,693.42,692.18,1.07868699]
[1735570158321,0.26566759,693.42,692.19,1.07868699]
[1735570159318,0.26566759,693.42,692.16,1.07868699]
[1735570159718,0.2656703,693.41,692.16,1.07868699]
[1735570159920,0.2656703,693.4,692.16,1.07868699]
[1735570160116,0.2656703,693.39,692.23,1.07868699]
[1735570160321,0.2656703,693.38,692.23,1.07868699]
[1735570160516,0.2656703,693.37,692.23,1.07868699]
[1735570160723,0.2656703,693.36,692.23,1.07868699]
[1735570160923,0.2656703,693.35,692.23,1.07868699]
[1735570161124,0.2656703,693.34,692.23,1.07868699]
[1735570161419,0.2656703,693.33,692.23,1.07868699]
[1735570161819,0.26566416,693.32,692.23,1.07868699]
[1735570162127,0.26566416,693.31,692.23,1.07868699]
[1735570162328,0.55413956,693.3,692.23,1.07868699]
[1735570162629,0.55414372,693.29,692.26,1.07868699]
[1735570162924,0.28848372,693.28,692.26,1.07868699]
[1735570163325,0.28848372,693.28,692.29,1.07868699]
[1735570165522,0.28848372,693.28,692.36,1.07868699]
[1735570166828,1.07937838,694.53,692.36,1.07868699]
[1735570167028,1.07937838,694.53,692.61,1.07868699]
[1735570167029,0.28800599,694.43,692.61,1.07868699]
[1735570167228,0.2655037,694.42,692.61,1.07868699]
[1735570167536,0.26549496,694.41,692.61,1.07868699]
[1735570167729,0.26549496,694.4,692.61,1.07868699]
[1735570167928,0.26549496,694.39,692.61,1.07868699]
[1735570168128,0.26549496,694.38,692.61,1.07868699]
[1735570168329,0.26549496,694.38,691.88,0.79802401]
[1735570168330,0.26549496,694.37,692.73,1.07868699]
[1735570168530,0.26549496,694.36,692.73,1.07868699]
[1735570168726,0.26549496,694.35,692.73,1.07868699]
[1735570168927,0.26549496,694.34,692.73,1.07868699]
[1735570169127,0.26549496,694.33,692.73,1.07868699]
[1735570169329,0.28800599,694.43,692.73,1.07868699]
[1735570169330,0.26549496,694.42,692.73,1.07868699]
[1735570169531,0.26549496,694.42,692.02,2.20134882]
[1735570169532,0.26549496,694.41,692.67,1.07868699]
[1735570169732,0.26549496,694.4,692.67,1.07868699]
[1735570169925,0.26549496,694.39,692.67,1.07868699]
[1735570170129,0.26549496,694.38,692.67,1.07868699]
[1735570170327,0.26549496,694.37,692.67,1.07868699]
[1735570170532,0.26543103,694.36,692.76,1.07868699]
[1735570170832,0.26543103,694.35,692.76,1.07868699]
[1735570171033,0.28800599,694.43,692.76,1.07868699]
[1735570171034,0.26539837,694.34,692.76,1.07868699]
[1735570171232,0.26539837,694.42,692.76,1.07868699]
[1735570171432,0.28800599,694.43,692.76,1.07868699]
[1735570171625,0.26537577,694.42,692.76,1.07868699]
[1735570173035,0.26537577,694.42,692.88,1.07868699]
[1735570173836,0.26537577,694.42,692.66,1.07868699]
[1735570174637,0.2654162,694.41,692.6,1.07868699]
[1735570174835,0.2654162,694.4,692.6,1.07868699]
[1735570175233,0.26542684,694.39,692.6,1.07868699]
[1735570175437,0.26542684,694.42,692.6,1.07868699]
[1735570175634,0.26542684,694.41,692.6,1.07868699]
[1735570175835,0.26542684,694.4,692.52,1.07868699]
[1735570176033,0.26542684,694.39,692.52,1.07868699]
[1735570176234,0.26542684,694.38,692.52,1.07868699]
[1735570176538,0.26542684,694.37,692.52,1.07868699]
[1735570176738,0.26542684,694.36,692.52,1.07868699]
[1735570176938,0.28800599,694.43,692.61,1.07868699]
[1735570176939,0.26542684,694.35,692.61,1.07868699]
[1735570177134,0.26542684,694.34,692.61,1.07868699]
[1735570177337,0.26542684,694.33,692.61,1.07868699]
[1735570177535,0.26542684,694.32,692.61,1.07868699]
[1735570177741,0.26542684,694.31,692.61,1.07868699]
[1735570177943,0.26542684,694.3,692.61,1.07868699]
[1735570178136,0.26542684,694.29,692.62,1.07868699]
[1735570178335,0.26542684,694.28,692.62,1.07868699]
[1735570178536,0.26542684,694.27,692.62,1.07868699]
[1735570178735,0.26542684,694.26,692.62,1.07868699]
[1735570178938,0.26542684,694.25,692.62,1.07868699]
[1735570179137,0.26542684,694.24,692.62,1.07868699]
[1735570179340,0.26542684,694.23,692.62,1.07868699]
[1735570179537,0.28800599,694.43,692.61,1.07868699]
[1735570179738,0.26545733,694.42,692.61,1.07868699]
[1735570179939,0.26545733,694.41,692.61,1.07868699]
[1735570180240,0.26545733,694.4,692.61,1.07868699]
[1735570180442,0.26545733,694.39,692.61,1.07868699]
[1735570180636,0.26545733,694.38,692.55,1.07868699]
[1735570180936,0.26545733,694.37,692.55,1.07868699]
[1735570181140,0.26545733,694.36,692.55,1.07868699]
[1735570181341,0.26545733,694.35,692.55,1.07868699]
[1735570181542,0.26545733,694.34,692.53,1.07868699]
[1735570181735,0.26545733,694.33,692.53,1.07868699]
[1735570181938,0.26545733,694.32,692.53,1.07868699]
[1735570182140,0.28800599,694.43,692.53,1.07868699]
[1735570182341,0.26545161,694.42,692.53,1.07868699]
[1735570182639,0.26545161,694.41,692.53,1.07868699]
[1735570182940,0.26551565,694.4,692.51,1.07868699]
[1735570183136,0.26551565,694.39,692.51,1.07868699]
[1735570183343,0.26551565,694.38,692.51,1.07868699]
[1735570183542,0.26551565,694.37,692.51,1.07868699]
[1735570183739,0.26551565,694.36,692.51,1.07868699]
[1735570183935,0.26551565,694.35,692.51,1.07868699]
[1735570184139,0.26551565,694.34,692.51,1.07868699]
[1735570184336,0.26551565,694.33,692.29,1.07868699]
[1735570184535,0.26551565,694.32,692.29,1.07868699]
[1735570184743,0.26561111,694.31,692.29,1.07868699]
[1735570185041,0.26561111,694.3,692.29,1.07868699]
[1735570185236,0.26561111,694.29,692.29,1.07868699]
[1735570185437,0.26561111,694.28,692.29,1.07868699]
[1735570185641,0.26561111,694.27,692.12,1.07868699]
[1735570185842,0.26561111,694.26,692.12,1.07868699]
[1735570186043,0.26561111,694.25,692.12,1.07868699]
[1735570186343,0.26561111,694.24,692.12,1.07868699]
[1735570186543,0.26561111,694.23,692.12,1.07868699]
[1735570186744,0.26561111,694.22,692.0,1.07868699]
[1735570186943,0.26561111,694.21,692.0,1.07868699]
[1735570187142,0.26561111,694.2,692.0,1.07868699]
[1735570187341,0.26561111,694.19,692.0,1.07868699]
[1735570187537,0.26561111,694.18,692.0,1.07868699]
[1735570187737,0.26561111,694.17,692.0,1.07868699]
[1735570187942,0.28800599,694.43,691.92,1.07868699]
[1735570187943,0.26561111,694.16,691.92,1.07868699]
[1735570188144,0.26561111,694.15,691.92,1.07868699]
[1735570188340,0.26561111,694.14,691.92,1.07868699]
[1735570188538,0.26561111,694.13,691.92,1.07868699]
[1735570188740,0.26561111,694.12,691.92,1.07868699]
[1735570189040,0.26561111,694.11,691.82,1.07868699]
[1735570189235,0.26561111,694.1,691.82,1.07868699]
[1735570189439,0.26561111,694.09,691.82,1.07868699]
[1735570189740,0.26573122,694.08,691.82,1.07868699]
[1735570189941,0.26573122,694.07,691.7,1.07868699]
[1735570190141,0.26573122,694.06,691.7,1.07868699]
[1735570190342,0.26573122,694.05,691.7,1.07868699]
[1735570190543,0.26573122,694.04,691.7,1.07868699]
[1735570190740,0.26573122,694.03,691.7,1.07868699]
[1735570190939,0.26573122,694.02,691.7,1.07868699]
[1735570191144,0.26573122,694.02,690.72,2.20134882]
[1735570191145,0.26573122,694.01,691.75,1.07868699]
[1735570191341,0.26573122,694.0,691.75,1.07868699]
[1735570191541,0.26573122,693.99,691.75,1.07868699]
[1735570191847,0.26573122,693.98,691.75,1.07868699]
[1735570192043,0.26573122,693.97,691.87,1.36775863]
[1735570192249,0.26573122,693.96,691.87,1.36775863]
[1735570192446,0.26568219,693.95,691.87,1.36775863]
[1735570192647,0.26568219,693.94,691.87,1.36775863]
[1735570192841,0.26568219,693.93,691.87,1.36775863]
[1735570193042,0.26568219,693.92,691.9,1.07868699]
[1735570193246,0.26568219,693.91,691.9,1.07868699]
[1735570193443,0.26568219,693.9,691.9,1.07868699]
[1735570193647,0.26568219,693.89,691.9,1.07868699]
[1735570193851,0.26568219,693.88,691.9,1.07868699]
[1735570194145,0.26568219,693.87,691.9,1.07868699]
[1735570194450,0.26568219,693.86,691.9,1.07868699]
[1735570194651,0.26568219,693.85,691.9,1.07868699]
[1735570194845,0.28800599,694.43,691.9,1.07868699]